[Event "SUI-ch Bundesturnier TP-1 2022"]
[Site "Payerne"]
[Date "2022.05.27"]
[Round "4.5"]
[White "Rohrer, Christophe"]
[Black "Pogan, Nikolas"]
[Result "0-1"]
[ECO "B12"]
[WhiteElo "2285"]
[BlackElo "2239"]
[Annotator "TA"]
[PlyCount "124"]
[EventDate "2022.05.26"]
[EventType "swiss"]
[EventCountry "SUI"]
[SourceTitle "playchess.com"]
[Source "ChessBase"]
[SourceQuality "1"]
[TimeControl "5400+30"]

{[%evp 12,124,25,15,40,34,55,25,30,8,43,14,61,18,22,20,32,27,25,46,71,29,32,37,59,46,45,19,19,22,27,22,66,31,33,31,23,10,91,67,283,202,612,612,674,646,1116,358,350,283,282,0,2,0,52,50,304,301,347,308,318,0,0,-46,-6,-69,-56,-66,-50,-104,-95,-100,-84,-227,-222,-320,-130,-128,-81,-86,-91,-77,-95,-305,-297,-303,-301,-290,-231,-303,-253,-347,-336,-385,-380,-512,-482,-622,-564,-1371,-1336,-29982,-29981,-29985,-29986,-29986,-29987,-29987,-29986,-29990,-29991,-29990,-29989,-29989,-29990]} 1. e4 {[%emt 0:00:04]} c6 {[%emt 0:00:01]} 2. d4 {[%emt 0:00:08]} d5 {[%emt 0:00:03]} 3. e5 {[%emt 0:00:13]} Bf5 {[%emt 0:00:15]} 4. Nf3 {[%emt 0:00:13]} e6 {[%emt 0:00:01]} 5. Be2 {[%emt 0:00:14]} Nd7 {[%emt 0:00:17]} 6. O-O {[%emt 0:00:19]} Ne7 {[%emt 0:00:11]} 7. Nbd2 {[%emt 0:00:37]} Nc8 {[%emt 0:03:49] B12: Caro-Kann: Advance Variation.} 8. a4 {[%emt 0:01:07]} Be7 {[%emt 0:00:10]} 9. Nb3 {[%emt 0:01:20]} O-O {[%emt 0:02:05] White has an edge.} 10. Ne1 {[%emt 0:06:25]} c5 {[%emt 0:12:37]} (10... f6 $5 {[%cal Rf6e5]}) 11. c3 {[%emt 0:10:52]} a6 {[%emt 0:05:12]} (11... c4 $11 12. Nd2 f6) 12. Be3 {[%emt 0:01:40] [#]} (12. g4 $5 {[%cal Rg4f5]} Be4 13. f3 $11) 12... c4 $146 {[%emt 0:00:20]} ({Predecessor:} 12... Qc7 13. g4 Bg6 14. f4 cxd4 15. cxd4 f5 16. Rc1 Qb6 17. a5 Qd8 18. Bd3 Na7 {1-0 (32) Nozdrachev,V (2500)-Turov,M (2565) Tuapse 2021}) 13. Nd2 {[%emt 0:00:36]} Na7 {[%emt 0:01:11]} 14. f4 {[%emt 0:03:06] Strongly threatening g4.} Bg6 {[%emt 0:00:02]} 15. g4 {[%emt 0:01:17]} f5 {[%emt 0:00:05]} 16. exf6 {[%emt 0:07:14]} (16. Nxc4 $5 dxc4 17. Bxc4 $14) 16... Nxf6 {[%emt 0:01:47]} 17. h4 {[%emt 0:05:14]} Ne4 {[%emt 0:04:03]} 18. h5 {[%emt 0:01:15]} Nxd2 {[%emt 0:00:01]} 19. Qxd2 {[%emt 0:00:14]} (19. Bxd2 $5 {[%cal Rh5g6]} Be4 20. Bf3 $11) 19... Be4 {[%emt 0:00:03]} 20. Bf3 {[%emt 0:00:53]} Bxf3 {[%emt 0:00:15]} 21. Nxf3 {[%emt 0:00:55]} Nc8 {[%emt 0:05:47]} 22. Ne5 {[%emt 0:07:32][%cal Oh5h6]} Nd6 {[%emt 0:00:22]} 23. Qg2 {[%emt 0:02:31][%cal Of4f5]} Rc8 {[%emt 0:07:32]} 24. Rf3 {[%emt 0:02:37][%cal Oh5h6]} (24. h6 {keeps more tension.} g6 25. f5 Bg5 26. Rae1) 24... Qe8 {[%emt 0:11:38]} (24... Bf6 $11 {keeps the balance.}) 25. Raf1 {[%emt 0:06:31][%cal Oh5h6]} Qxa4 $2 {[%emt 0:03:51]} (25... Bf6 $14) 26. h6 {[%emt 0:02:23]} Bf6 $2 {[%emt 0:05:12]} (26... gxh6 $2 27. f5 Nf7 28. f6 (28. fxe6 Nxe5 29. dxe5 Rxf3 $11) 28... Nxe5 29. dxe5 $18) (26... g5 27. fxg5 Rxf3 28. Nxf3 (28. Qxf3 Rf8 $11) 28... Rf8) 27. f5 $1 $18 {[%emt 0:03:13]} Ne4 {[%emt 0:10:21]} 28. fxe6 {[%emt 0:05:26]} Rfe8 {[%emt 0:09:27]} 29. hxg7 $2 {[%emt 0:01:57]} (29. g5 Bxe5 30. dxe5 Rxe6 31. hxg7) 29... Bxg7 {[%emt 0:00:21]} 30. Rf7 {[%emt 0:02:00] White threatens Qh3 and mate.} (30. Qh2 Rxe6 31. Qh4 (31. Rf7 Rf8 $14) 31... Qe8 $14) 30... Rxe6 {[%emt 0:00:51]} 31. Qf3 $2 {[%emt 0:01:34]} ({Weaker is} 31. Rxb7 Bxe5 32. dxe5 Qe8 $14) (31. g5 $1 $18 {[%cal Rg5g6] Threatens to win with g6.} Rxe5 32. dxe5) 31... Qe8 $1 $11 {[%emt 0:10:38]} 32. Qh3 {[%emt 0:09:26]} Re7 {[%emt 0:03:47]} (32... Nd6 $1 $11 33. R7f3 (33. Rd7 h6 $11) 33... Qe7) 33. Bh6 $14 {[%emt 0:02:36][%mdl 1024] Black must now prevent g5. White has compensation.} ({Reject} 33. Qh5 Nd6 34. Rxe7 Qxe7 $11) 33... Rcc7 $2 {[%emt 0:02:02][%mdl 8192]} 34. R7f3 {[%emt 0:02:19] And now Qh4 would win.} Qc8 {[%emt 0:02:41]} 35. Qh5 {[%emt 0:02:25]} Re6 {[%emt 0:00:28]} (35... Qe8 $2 36. Qh4 $18) 36. Bf4 {[%emt 0:04:10]} (36. g5 $18) 36... Qe8 {[%emt 0:00:31] Against Rf7} 37. Qh2 {[%emt 0:01:19]} (37. Qh4 $11 {should be considered.}) 37... Rc8 {[%emt 0:00:16]} 38. Rh3 {[%emt 0:00:50]} (38. Kg2 $11) 38... Bxe5 $15 {[%emt 0:00:41]} 39. Bxe5 {[%emt 0:00:47]} Qg6 {[%emt 0:00:04]} 40. Qg2 {[%emt 0:00:53]} (40. Kh1 $15) 40... Rf8 $17 {[%emt 0:00:07]} 41. Rxf8+ {[%emt 0:01:53]} Kxf8 {[%emt 0:00:03]} 42. Rh5 {[%emt 0:00:37]} (42. Qf3+ $17 Ke7 43. Rh5) 42... Re7 $1 $19 {[%emt 0:01:09]} 43. Qh3 {[%emt 0:02:44] [#]} (43. Bb8 $142 Qxh5 44. gxh5) 43... Rf7 {[%emt 0:00:01]} (43... Ng5 $1 $19 {[%cal Rg5h3]} 44. Qg2 Rf7) 44. Qh4 $17 {[%emt 0:00:18][%cal Rh4d8]} Ke8 $36 {[%emt 0:01:04][%mdl 2048] Inhibits Qd8+. Keeping White busy.} ({Black should play} 44... Nf6 {Hoping for ...Qb1+.} 45. Rf5 Qxg4+ 46. Qxg4 Nxg4 47. Bd6+ Ke8) 45. Rh6 {[%emt 0:00:09]} Qg5 {[%emt 0:00:36] ( -> ...Qe3+). Black is more active.} 46. Re6+ {[%emt 0:01:24] [#]} Re7 $1 {[%emt 0:00:28] The board is on fire.} 47. Rxe7+ $2 {[%emt 0:01:36]} (47. Qxg5 $17 Nxg5 48. Rd6) 47... Qxe7 {[%emt 0:00:03][%mdl 4096] Endgame KQB-KQN} 48. Qh6 {[%emt 0:00:13]} Qf7 {[%emt 0:01:10]} 49. Bf4 {[%emt 0:00:48]} Qg6 {[%emt 0:00:12]} 50. Qh4 {[%emt 0:00:14]} b5 {[%emt 0:00:29][%cal Bb7b5,Bb5b4,Bb4b3][%mdl 32]} 51. g5 {[%emt 0:00:20]} Qf5 {[%emt 0:00:25]} 52. Kg2 {[%emt 0:01:01]} a5 {[%emt 0:00:14]} 53. Qh5+ {[%emt 0:00:37]} Kd7 {[%emt 0:00:32]} 54. Be3 {[%emt 0:00:31]} b4 {[%emt 0:00:15]} 55. Qd1 {[%emt 0:00:38]} b3 {[%emt 0:01:03]} 56. Qh5 {[%emt 0:00:09]} a4 {[%emt 0:01:01] Black mates.} 57. Kh2 {[%emt 0:00:29]} a3 {[%emt 0:00:24]} 58. Qh6 {[%emt 0:00:06]} Nd6 {[%emt 0:00:36]} 59. Qg7+ {[%emt 0:00:33]} Qf7 {[%emt 0:00:20]} 60. Qe5 {[%emt 0:00:14]} axb2 {[%emt 0:00:18]} 61. Bf4 {[%emt 0:00:08]} Qxf4+ {[%emt 0:00:15]} 62. Qxf4 {[%emt 0:00:04]} b1=Q {[%emt 0:00:10] Black used his chance.  Weighted Error Value: White=0.62/Black=0.36} 0-1

[Event "SUI-ch Bundesturnier TP-1 2022"]
[Site "Payerne"]
[Date "2022.05.27"]
[Round "4.6"]
[White "Lou, Vincent"]
[Black "Loeffler, Markus"]
[Result "0-1"]
[ECO "D85"]
[WhiteElo "2212"]
[BlackElo "2272"]
[Annotator "TA"]
[PlyCount "100"]
[EventDate "2022.05.26"]
[EventType "swiss"]
[EventCountry "SUI"]
[SourceTitle "playchess.com"]
[Source "ChessBase"]
[SourceQuality "1"]
[TimeControl "5400+30"]

{[%evp 17,100,6,10,-7,8,14,20,21,13,15,17,5,6,5,13,0,12,16,12,0,20,20,20,19,26,21,24,-12,-16,-16,-9,-12,0,-189,-208,-200,-198,-195,-166,-213,-206,-565,-560,-543,-516,-478,-470,-604,-598,-591,-583,-561,-491,-526,-364,-353,-312,-643,-631,-1083,-617,-29972,-29974,-29974,-29969,-29968,-29968,-29972,-29967,-29977,-29978,-29978,-29979,-29976,-29974,-29980,-29981,-29986,-29987,-29987,-29988,-29988,12850,-29988,-29989]} 1. d4 {[%emt 0:01:39]} Nf6 {[%emt 0:01:17]} 2. c4 {[%emt 0:00:00]} g6 {[%emt 0:00:05]} 3. Nc3 {[%emt 0:00:00]} d5 {[%emt 0:00:04]} 4. cxd5 {[%emt 0:00:00]} Nxd5 {[%emt 0:00:02]} 5. e4 {[%emt 0:00:00]} Nxc3 {[%emt 0:00:02]} 6. bxc3 {[%emt 0:00:07]} Bg7 {[%emt 0:00:05]} 7. Qa4+ {[%emt 0:00:07]} Nd7 {[%emt 0:02:03]} 8. Nf3 {[%emt 0:00:49]} O-O {[%emt 0:00:19]} 9. Be2 {[%emt 0:00:25]} c5 {[%emt 0:00:48]} 10. O-O {[%emt 0:01:08] D85: Exchange Grünfeld: Unusual White 7th moves and lines with 7 Nf3.} Nb6 {[%emt 0:01:29]} 11. Qa3 {[%emt 0:03:12]} cxd4 {[%emt 0:00:54]} 12. cxd4 {[%emt 0:00:07] The position is equal.} Bg4 {[%emt 0:00:26]} 13. Bg5 {[%emt 0:01:39][%cal Bc1g5,Bg5e7,Be7c5][%mdl 32]} Bxf3 {[%emt 0:07:17]} 14. Bxf3 {[%emt 0:02:03]} Qxd4 {[%emt 0:01:26]} 15. Rad1 {[%emt 0:02:38]} Qe5 {[%emt 0:13:54]} 16. Bxe7 {[%emt 0:05:43]} Nc4 {[%emt 0:04:22]} 17. Qb4 {[%emt 0:05:30]} Rfe8 {[%emt 0:03:11] [#]} 18. Bc5 $146 {[%emt 0:07:25]} ({Predecessor:} 18. Bh4 Qe6 19. Qxb7 Ne5 20. Qd5 Nxf3+ 21. gxf3 Qh3 22. Bg3 h5 23. Qd7 Re6 24. Rd6 {1-0 (35) Efremov,V (2173)-Klasan,V (2297) Belgrade 2021}) 18... Qc3 {[%emt 0:09:20]} 19. Qxc3 {[%emt 0:19:14]} ({Reject} 19. Qxb7 Nd2 20. Rxd2 Qxd2 21. Bxa7 Qxa2 $17) 19... Bxc3 {[%emt 0:00:03]} 20. Rc1 {[%emt 0:00:17]} Rec8 {[%emt 0:02:06]} 21. Rxc3 {[%emt 0:01:25]} Rxc5 {[%emt 0:00:03]} 22. a4 {[%emt 0:06:19] [#] Hoping for Rfc1.} Rac8 {[%emt 0:08:32]} 23. Rfc1 {[%emt 0:00:18] Threatens to win with Be2.} b6 {[%emt 0:00:46][%cal Bb7b6,Bb6c5,Bc5c4][%mdl 32]} 24. Bd1 {[%emt 0:09:54]} Kf8 {[%emt 0:12:27]} 25. Bb3 $2 {[%emt 0:04:02] Black keeps a firm grip on the game.} (25. f3 $11 {and White stays safe.}) 25... Nd2 $19 {[%emt 0:04:46][%csl LRc3,LRe4]} 26. Rxc5 {[%emt 0:00:48]} Rxc5 {[%emt 0:00:01]} 27. Rxc5 {[%emt 0:00:11]} bxc5 {[%emt 0:00:03][%mdl 4096] Endgame KB-KN} 28. Bc2 {[%emt 0:00:16]} (28. Bd1 {is a better defense.}) 28... c4 {[%emt 0:10:39] And now ...Nb3 would win.} 29. f4 $2 {[%emt 0:05:38] [#]} (29. e5 {was the crucial defense.} c3 30. Bd3) 29... Nb3 $1 {[%emt 0:00:38]} 30. Kf2 {[%emt 0:01:03]} Nd4 {[%emt 0:00:18]} 31. Bd1 {[%emt 0:00:40]} c3 {[%emt 0:00:03] White must now prevent ...c2.} 32. Ke3 {[%emt 0:00:10]} c2 {[%emt 0:00:02]} 33. Bxc2 {[%emt 0:00:06]} Nxc2+ {[%emt 0:00:05] KN-KP} 34. Kd2 {[%emt 0:00:14]} Nd4 {[%emt 0:01:41]} 35. Kd3 {[%emt 0:00:09]} Nc6 {[%emt 0:03:20]} 36. Kc4 {[%emt 0:02:06]} Ke7 {[%emt 0:00:02]} 37. g4 $2 {[%emt 0:00:32]} (37. Kd5 Kd7 38. g3) 37... Kd6 {[%emt 0:02:02]} 38. h4 {[%emt 0:01:55]} h6 {[%emt 0:03:06]} 39. h5 {[%emt 0:02:46]} gxh5 {[%emt 0:00:27]} 40. gxh5 {[%emt 0:00:07]} f6 {[%emt 0:03:54][%cal Bf7f6,Bf6f5][%mdl 32]} 41. Kb5 {[%emt 0:01:28]} Nb8 {[%emt 0:00:25]} 42. a5 {[%emt 0:00:56]} Nd7 {[%emt 0:02:36]} 43. Ka6 {[%emt 0:01:13]} Nc5+ {[%emt 0:00:16]} 44. Kxa7 {[%emt 0:00:33]} Kc7 {[%emt 0:00:49]} 45. e5 {[%emt 0:07:22]} f5 {[%emt 0:00:03]} 46. Ka8 {[%emt 0:01:19]} Ne6 {[%emt 0:00:16]} 47. a6 {[%emt 0:04:10]} Nxf4 {[%emt 0:00:17]} 48. e6 {[%emt 0:02:32]} Nxe6 {[%emt 0:00:31]} 49. a7 {[%emt 0:00:16]} Kb6 {[%emt 0:00:20]} 50. Kb8 {[%emt 0:00:10]} Nc7 {[%emt 0:00:11] Weighted Error Value: White=0.81/Black=0.20 (precise)} 0-1

[Event "SUI-ch Bundesturnier TP-1 2022"]
[Site "Payerne"]
[Date "2022.05.27"]
[Round "4.7"]
[White "Kamber, Bruno"]
[Black "Schweighoffer, Martin"]
[Result "1-0"]
[ECO "C49"]
[WhiteElo "2225"]
[BlackElo "2105"]
[Annotator "TA"]
[PlyCount "99"]
[EventDate "2022.05.26"]
[EventType "swiss"]
[EventCountry "SUI"]
[SourceTitle "playchess.com"]
[Source "ChessBase"]
[SourceQuality "1"]
[TimeControl "5400+30"]

{[%evp 12,98,13,8,6,0,0,0,9,-4,0,0,0,-18,0,0,12,-18,0,-8,0,0,0,0,0,-70,-58,-90,-102,-164,-161,-182,-176,-243,-243,-241,-239,-234,-37,-33,0,-7,-10,-15,249,241,308,325,306,273,267,164,310,302,527,505,678,679,752,737,793,752,879,877,1210,1193,2258,2222,29983,29984,29984,29985,29985,29986,29992,29990,29990,29991,29991,29992,29992,29993,29993,29988,29988,29989,29998,29999,29999]} 1. e4 {[%emt 0:01:06]} e5 {[%emt 0:00:12]} 2. Nf3 {[%emt 0:02:31]} Nc6 {[%emt 0:00:11]} 3. Nc3 {[%emt 0:00:12]} Nf6 {[%emt 0:00:20]} 4. Bb5 {[%emt 0:00:03]} Bb4 {[%emt 0:01:43]} 5. O-O {[%emt 0:04:43]} O-O {[%emt 0:00:24]} 6. Bxc6 {[%emt 0:00:30]} dxc6 {[%emt 0:01:00]} 7. d3 {[%emt 0:00:16]} Nd7 {[%emt 0:01:42] C49: Four Knights: 4 Bb5 Bb4.} 8. Ne2 {[%emt 0:00:14]} Re8 {[%emt 0:02:22]} 9. Ng3 {[%emt 0:00:23]} Nf8 {[%emt 0:00:19] The position is equal.} 10. h3 {[%emt 0:00:37] [#]} a5 $146 {[%emt 0:01:24]} ({Predecessor:} 10... Ng6 11. Nf5 a5 12. a4 Bf8 13. Bg5 f6 14. Be3 Nf4 15. d4 exd4 16. N3xd4 Ne6 17. Nxe6 Qxd1 18. Rfxd1 Bxe6 {½-½ (71) Quesada Perez,Y (2560)-Gareyev,T (2565) San Salvador 2022}) 11. a3 {[%emt 0:10:24]} Bd6 {[%emt 0:01:08]} 12. Nh2 {[%emt 0:01:06]} Qh4 {[%emt 0:06:00]} 13. Be3 {[%emt 0:00:43]} Bd7 {[%emt 0:04:24]} 14. Qd2 {[%emt 0:02:05] [#] aiming for Bg5.} h6 {[%emt 0:00:38] Prevents Bg5.} 15. Nf3 {[%emt 0:02:31]} Qf6 {[%emt 0:01:05][%cal Od7h3]} 16. d4 {[%emt 0:00:22]} exd4 {[%emt 0:13:56]} 17. Bxd4 {[%emt 0:00:10]} Qg6 {[%emt 0:01:48]} 18. e5 {[%emt 0:00:32]} (18. Nh4 $11 Qg5 19. Qxg5 hxg5 20. Nhf5) 18... Be7 $15 {[%emt 0:00:10]} 19. Rae1 {[%emt 0:02:11]} c5 {[%emt 0:00:18]} 20. Bc3 {[%emt 0:00:45]} (20. e6 $17 {was necessary.} Bxe6 21. Bc3) 20... Bb5 $19 {[%emt 0:01:24]} 21. Ne2 {[%emt 0:01:00]} Ne6 {[%emt 0:01:20]} 22. Nh2 {[%emt 0:06:29]} (22. Kh2 {was worth a try.}) 22... Red8 {[%emt 0:01:43]} 23. Qc1 {[%emt 0:00:19]} Bc6 {[%emt 0:05:16][%csl Gc6][%cal Rg6g2]} 24. Ng4 {[%emt 0:06:04][%cal Bh2g4,Bg4e3,Be3f5][%mdl 32] [#]} Bg5 {[%emt 0:10:06]} ({Worse is} 24... Qe4 25. f3 Qh7 26. Bd2 $17) (24... h5 $1 $19 {[%cal Rh5g4]} 25. Ne3 Nd4) 25. f4 $15 {[%emt 0:00:14]} Qe4 {[%emt 0:01:18][%csl Gc6][%cal Re4g2]} (25... h5 $5 {[%cal Rh5g4]} 26. fxg5 hxg4 27. hxg4 Qxg5 28. Qxg5 Nxg5 $15) 26. Rf2 {[%emt 0:01:15]} Bh4 {[%emt 0:02:56] This bishop pair is nice.} 27. Ng3 $1 {[%emt 0:00:21]} Qc4 {[%emt 0:04:19][%mdl 8192] This move loses the game for Black.} (27... Bxg3 $2 28. Rxe4 Bxe4 29. Rf1 $18) (27... Qh7 $1 $11 28. Kh2 h5) 28. Ne3 $18 {[%emt 0:00:42]} Qa6 {[%emt 0:03:20]} 29. Nef5 {[%emt 0:02:07]} Bxg3 {[%emt 0:00:05]} 30. Nxg3 {[%emt 0:00:11]} Qc4 {[%emt 0:02:34]} 31. Nf5 {[%emt 0:03:25]} Kf8 {[%emt 0:04:43]} (31... Kh7 $142 32. Ne7 Be8) 32. Qe3 {[%emt 0:03:52]} a4 $2 {[%emt 0:02:16]} (32... Rd4 33. Bxd4 (33. Nxd4 cxd4 34. Bxd4 Qxd4 $11) 33... cxd4) 33. Qg3 {[%emt 0:00:12]} Be4 {[%emt 0:02:05]} 34. Ne3 {[%emt 0:00:38]} Qa6 {[%emt 0:00:52]} 35. f5 {[%emt 0:01:42]} Nd4 {[%emt 0:00:11]} 36. Qh4 {[%emt 0:03:20]} Qc6 {[%emt 0:02:37]} 37. e6 {[%emt 0:01:18]} fxe6 {[%emt 0:02:49]} 38. f6 {[%emt 0:02:40]} Bf5 {[%emt 0:05:48]} 39. fxg7+ {[%emt 0:00:16]} Kxg7 {[%emt 0:00:39]} 40. Nxf5+ {[%emt 0:23:13] White mates.} exf5 {[%emt 0:00:09]} 41. Re7+ {[%emt 0:00:09]} Kh8 {[%emt 0:02:21]} 42. Rxf5 {[%emt 0:00:43]} Rd6 {[%emt 0:00:53]} 43. Rff7 {[%emt 0:02:15][%cal Bf5f7,Bf7g7,Bg7g8][%mdl 32]} Rg6 {[%emt 0:02:31]} 44. Bxd4+ {[%emt 0:02:40]} cxd4 {[%emt 0:00:01]} 45. Qxd4+ {[%emt 0:00:09]} Kg8 {[%emt 0:00:04]} 46. Rg7+ {[%emt 0:00:26]} Kf8 {[%emt 0:00:02]} 47. Ref7+ {[%emt 0:00:23]} Ke8 {[%emt 0:00:04]} 48. Qe5+ {[%emt 0:00:21]} Re6 {[%emt 0:01:56]} 49. Rg8+ {[%emt 0:01:23]} Kxf7 {[%emt 0:00:16]} 50. Qg7# {[%emt 0:00:04] Weighted Error Value: White=0.14 (very precise) /Black=0.64} 1-0

[Event "SUI-ch Bundesturnier TP-1 2022"]
[Site "Payerne"]
[Date "2022.05.27"]
[Round "4.8"]
[White "Mamalis, Prokopios"]
[Black "Gschnitzer, Adrian"]
[Result "0-1"]
[ECO "B30"]
[WhiteElo "2067"]
[BlackElo "2441"]
[Annotator "TA"]
[PlyCount "60"]
[EventDate "2022.05.26"]
[EventType "swiss"]
[EventCountry "SUI"]
[SourceTitle "playchess.com"]
[Source "ChessBase"]
[SourceQuality "1"]
[TimeControl "5400+30"]

{[%evp 10,60,9,13,15,-27,-30,-67,-54,-102,-107,-93,-88,-204,-183,-297,-299,-297,-254,-330,-282,-313,-229,-268,-262,-355,-350,-366,-363,-360,-352,-343,-360,-443,-439,-443,-454,-448,-442,-447,-450,-450,-447,-454,-417,-458,-457,-460,-454,-454,-448,-436,-432]} 1. e4 {[%emt 0:02:15]} c5 {[%emt 0:00:10]} 2. Nc3 {[%emt 0:00:08]} Nc6 {[%emt 0:00:06]} 3. Bb5 {[%emt 0:00:06]} Nd4 {[%emt 0:00:09]} 4. Nf3 {[%emt 0:00:04]} e6 {[%emt 0:00:11]} 5. O-O {[%emt 0:00:08]} a6 {[%emt 0:00:09]} 6. Bd3 {[%emt 0:00:06]} Nc6 {[%emt 0:00:28] B30: Sicilian: 2...Nc6 3 Bb5, lines without ...g6.} 7. Re1 {[%emt 0:06:27] 7.e5 is setting a new trend.} g5 {[%emt 0:00:13][%cal Bg7g5,Bg5g4][%mdl 32] Threatens to win with ...g4.} 8. Kh1 {[%emt 0:07:56] [#]} h5 $146 {[%emt 0:06:48] Black is slightly better.} ({Predecessor:} 8... Bg7 9. Ng1 d6 10. Qh5 h6 11. b3 Nf6 12. Qd1 b5 13. Bb2 Bb7 14. a4 b4 {0-1 (39) Janaszak,D (2334)-Strybuk,A (2296) Chess.com INT 2022}) 9. a4 {[%emt 0:08:41]} (9. b3 $15 {feels stronger.}) 9... g4 $17 {[%emt 0:04:18]} 10. Ng1 {[%emt 0:00:29]} Bd6 {[%emt 0:02:09]} 11. g3 {[%emt 0:18:07] Against Qh4} (11. Rf1 $17) 11... h4 $19 {[%emt 0:09:55] aiming for ...hxg3.} 12. e5 {[%emt 0:07:35] [#]} (12. Qxg4 $142 hxg3 13. fxg3) 12... hxg3 $1 {[%emt 0:03:37]} 13. fxg3 {[%emt 0:00:07]} Nxe5 {[%emt 0:01:22]} 14. Be4 {[%emt 0:04:52]} Qf6 {[%emt 0:17:41] White must now prevent ...Qf2.} 15. Rf1 {[%emt 0:12:02] Prevents Qf2.} Nf3 $40 {[%emt 0:05:04][%mdl 128] Black attacks with force.} (15... Qh6 16. h3 Qh5 17. d4 cxd4 18. Qxd4 $17) 16. Nxf3 {[%emt 0:01:38] And now Nh4 would win.} Bxg3 {[%emt 0:00:45]} ({And not} 16... gxf3 17. Qxf3 Qxf3+ 18. Bxf3 $17) 17. Qe2 {[%emt 0:12:51]} ({Not} 17. Ne2 $2 gxf3 18. Rxf3 {[#]} (18. Nxg3 {gets mated.} Rxh2+ 19. Kxh2 Qh4+ 20. Kg1 Qxg3+ 21. Kh1 Qg2#) 18... Qh4 $1 $19) 17... gxf3 {[%emt 0:02:32]} 18. Rxf3 {[%emt 0:00:08]} Qe5 {[%emt 0:02:09][%cal Rh8h2]} 19. Rxg3 {[%emt 0:00:19]} Qxg3 {[%emt 0:00:08]} 20. d3 {[%emt 0:00:32][%cal Oc3d5]} Nf6 {[%emt 0:03:39] Against Nd5. ( -> ...Ng4)} 21. Bf3 {[%emt 0:02:33] Inhibits Ng4.} Rh3 {[%emt 0:05:17]} 22. Ne4 {[%emt 0:02:25]} Qxf3+ {[%emt 0:01:06]} 23. Qxf3 {[%emt 0:00:04]} Rxf3 {[%emt 0:00:10]} 24. Kg2 {[%emt 0:00:24] [#]} Nxe4 $1 {[%emt 0:02:22]} 25. Kxf3 {[%emt 0:00:02]} Nd6 {[%emt 0:00:37]} 26. h4 {[%emt 0:00:44]} b5 {[%emt 0:01:15]} 27. h5 {[%emt 0:00:06]} Bb7+ {[%emt 0:00:17] Black is clearly winning.} 28. Kf2 {[%emt 0:00:02]} Nf5 {[%emt 0:01:40]} 29. Bg5 {[%emt 0:00:15]} Kf8 {[%emt 0:00:52]} 30. Bf6 {[%emt 0:00:09]} Kg8 {[%emt 0:00:16] White did not feel at home in the position after the opening.  Weighted Error Value: White=0.35/Black=0.07 (flawless)} 0-1